[Event "SixDays Budapest GM-A May 2024"]
[Site "Budapest"]
[Date "2024.05.16"]
[Round "1.5"]
[White "Aczel, Gergely"]
[Black "Bai, Adelard"]
[Result "1-0"]
[ECO "E11"]
[WhiteElo "2493"]
[BlackElo "2376"]
[Annotator "TA"]
[PlyCount "125"]
[EventDate "2024.05.15"]
[EventType "tourn"]
[EventCountry "HUN"]
[SourceTitle "playchess.com"]
[Source "ChessBase"]
[SourceQuality "1"]
[TimeControl "40/5400+30:1800+30"]

{[%evp 19,125,24,31,31,39,34,49,34,29,50,64,34,31,29,65,69,82,71,80,48,43,42,44,41,85,85,85,73,71,58,78,58,93,77,90,70,112,103,98,103,152,141,401,359,391,379,397,389,492,410,400,325,370,358,334,234,399,316,334,341,343,340,483,495,506,492,473,483,496,472,475,500,499,487,488,671,708,631,708,703,29975,29976,29976,29977,29980,29981,29982,29981,29982,29982,29983,29984,29984,29985,29985,29986,29986,29987,29989,29990,29991,29992,29993,29994,29994,29995,29995,29995]} 1. d4 {[%emt 0:00:04]} Nf6 {[%emt 0:00:14]} 2. c4 {[%emt 0:00:04]} e6 {[%emt 0:00:14]} 3. Nf3 {[%emt 0:00:05]} Bb4+ {[%emt 0:00:40]} 4. Bd2 {[%emt 0:00:06]} c5 {[%emt 0:04:13]} 5. Bxb4 {[%emt 0:00:21]} cxb4 {[%emt 0:00:05]} 6. g3 {[%emt 0:03:22]} b6 {[%emt 0:01:36]} 7. Bg2 {[%emt 0:00:07]} Bb7 {[%emt 0:00:08]} 8. O-O {[%emt 0:00:09]} O-O {[%emt 0:00:31]} 9. a3 {[%emt 0:00:14]} bxa3 {[%emt 0:01:35]} 10. Nxa3 {[%emt 0:03:27]} d6 {[%emt 0:06:25]} 11. b4 {[%emt 0:08:42]} Nbd7 {[%emt 0:04:37]} 12. Qb3 {[%emt 0:03:10]} Qb8 {[%emt 0:05:33]} 13. Nc2 {[%emt 0:05:44] White is slightly better.} Rc8 {[%emt 0:14:40]} 14. Ne3 {[%emt 0:00:33]} Be4 {[%emt 0:08:28]} 15. Rfc1 {[%emt 0:03:19]} a5 {[%emt 0:10:04]} 16. Bh3 {[%emt 0:11:45]} Bxf3 {[%emt 0:20:08]} 17. exf3 {[%emt 0:00:09]} Qc7 {[%emt 0:05:27]} 18. f4 {[%emt 0:09:17]} axb4 {[%emt 0:04:37]} 19. Rxa8 {[%emt 0:10:10]} Rxa8 {[%emt 0:00:01]} 20. Qxb4 {[%emt 0:00:12]} g6 {[%emt 0:03:01]} 21. Bg2 {[%emt 0:00:51]} Rb8 {[%emt 0:01:46]} 22. Rd1 {[%emt 0:02:16]} Kg7 {[%emt 0:01:42]} 23. h4 {[%emt 0:00:36]} h5 {[%emt 0:00:27]} 24. Bf3 {[%emt 0:00:08]} Rc8 {[%emt 0:01:20]} 25. Kg2 {[%emt 0:00:37]} Re8 {[%emt 0:01:35]} 26. Qb5 {[%emt 0:04:55]} Rc8 {[%emt 0:00:55]} 27. Qb2 {[%emt 0:01:33] White has more active pieces.} Kg8 {[%emt 0:00:48]} 28. Ra1 {[%emt 0:04:41][%cal Bd1a1,Ba1a3,Ba3a7][%mdl 32]} Rb8 {[%emt 0:02:00]} 29. Ra3 {[%emt 0:01:15]} Re8 {[%emt 0:01:38]} (29... b5 $142) 30. Qa1 $16 {[%emt 0:01:04]} e5 $2 {[%emt 0:00:29][%mdl 8192] This costs Black the game.} (30... Rb8 $16 {might work better.}) 31. Ra7 $18 {[%emt 0:00:39]} Qd8 {[%emt 0:00:30]} 32. f5 {[%emt 0:08:55]} e4 {[%emt 0:00:18]} 33. Bd1 {[%emt 0:01:04]} Nf8 {[%emt 0:00:42]} 34. Qa6 {[%emt 0:06:50]} Re7 {[%emt 0:00:32]} 35. Rxe7 {[%emt 0:00:55]} Qxe7 {[%emt 0:00:01]} 36. Qxb6 {[%emt 0:00:16]} ({Weaker is} 36. fxg6 fxg6 37. Qxb6 Kg7 $18) 36... Kg7 {[%emt 0:00:31]} 37. Qb2 {[%emt 0:02:33]} Qd7 $2 {[%emt 0:00:38]} (37... Qa7 {was called for.} 38. Be2 N8d7) 38. fxg6 {[%emt 0:02:39]} fxg6 {[%emt 0:00:01]} 39. c5 {[%emt 0:01:52]} dxc5 {[%emt 0:00:22]} 40. dxc5 {[%emt 0:00:04][%cal Bd4c5,Bc5b6,Bb6b7][%mdl 32]} Qc6 {[%emt 0:00:35]} (40... Ne6 $142 41. Qe5 Nd8) 41. Qb6 {[%emt 0:31:00]} Qxb6 {[%emt 0:30:48]} 42. cxb6 {[%emt 0:00:03][%mdl 4096] Endgame. KBN-KNN} N6d7 {[%emt 0:00:28]} 43. b7 {[%emt 0:02:56]} Ne6 {[%emt 0:00:09]} 44. Bb3 {[%emt 0:02:11]} Nec5 {[%emt 0:00:09]} 45. Bd5 {[%emt 0:00:06]} Kf6 {[%emt 0:00:33]} 46. Nc4 {[%emt 0:00:11]} g5 {[%emt 0:01:04]} 47. hxg5+ {[%emt 0:01:32]} Kxg5 {[%emt 0:00:01]} 48. Nd6 {[%emt 0:00:13]} e3 {[%emt 0:01:38]} 49. fxe3 {[%emt 0:00:07] [#] And now Ne4+ would win.} h4 {[%emt 0:00:29]} 50. Ne4+ {[%emt 0:00:41] White mates.} Nxe4 {[%emt 0:00:20]} 51. Bxe4 {[%emt 0:00:55]} hxg3 {[%emt 0:00:08]} 52. Kxg3 {[%emt 0:00:08] KB-KN} Nb8 {[%emt 0:00:20]} 53. Kf3 {[%emt 0:00:45]} Nd7 {[%emt 0:00:06]} 54. Bd3 {[%emt 0:00:50]} Kf6 {[%emt 0:00:12]} 55. Kf4 {[%emt 0:00:14]} Ke7 {[%emt 0:00:40]} 56. Bb5 {[%emt 0:01:09]} Nb8 {[%emt 0:00:16]} 57. e4 {[%emt 0:00:24][%cal Be3e4,Be4e5,Be5e6][%mdl 32]} Kd6 {[%emt 0:00:17]} 58. e5+ {[%emt 0:00:16]} Kc5 {[%emt 0:00:20] [#]} 59. e6 $1 {[%emt 0:00:32]} Kd6 {[%emt 0:01:19]} (59... Kxb5 60. e7) 60. Kf5 {[%emt 0:00:08]} Ke7 {[%emt 0:00:13]} 61. Ke5 {[%emt 0:00:28]} Kd8 {[%emt 0:00:05]} 62. Kd6 {[%emt 0:00:32][%csl Gd6][%cal Re6e7]} Nc6 {[%emt 0:00:07]} 63. Kxc6 {[%emt 0:00:17] Weighted Error Value: White=0.12 (very precise) /Black=0.37.  Loses game:     	---       	Black=1      Mistake:       	---       	Black=3      Inaccurate:     	White=2     	Black=4      OK:         	White=18    	Black=8      Best:        	White=2     	Black=1} 1-0

[Event "SixDays Budapest GM-A May 2024"]
[Site "Budapest"]
[Date "2024.05.17"]
[Round "2.1"]
[White "Ramoutar, Alan-Safar"]
[Black "Bai, Adelard"]
[Result "1-0"]
[ECO "C55"]
[WhiteElo "2360"]
[BlackElo "2376"]
[Annotator "TA"]
[PlyCount "49"]
[EventDate "2024.05.15"]
[EventType "tourn"]
[EventCountry "HUN"]
[SourceTitle "playchess.com"]
[Source "ChessBase"]
[SourceQuality "1"]
[TimeControl "40/5400+30:1800+30"]

{[%evp 22,49,0,0,10,-3,-6,-29,-33,0,0,0,0,0,22,14,183,180,264,283,282,279,268,244,535,519,535,502,842,814]} 1. e4 {[%emt 0:00:15]} e5 {[%emt 0:00:08]} 2. Nf3 {[%emt 0:00:12]} Nc6 {[%emt 0:00:10]} 3. Bc4 {[%emt 0:00:22]} Nf6 {[%emt 0:00:16][%cal Bg8f6,Bf6e4,Be4g5][%mdl 32]} 4. d4 {[%emt 0:00:24]} exd4 {[%emt 0:00:46]} 5. e5 {[%emt 0:00:12]} d5 {[%emt 0:01:10]} 6. Bb5 {[%emt 0:00:09]} Ne4 {[%emt 0:00:22]} 7. Nxd4 {[%emt 0:00:09]} Bd7 {[%emt 0:00:46]} 8. Bxc6 {[%emt 0:00:10]} bxc6 {[%emt 0:00:08]} 9. O-O {[%emt 0:00:19]} Bc5 {[%emt 0:01:09]} 10. f3 {[%emt 0:00:22][%cal Bf2f3,Bf3f4][%mdl 32]} Ng5 {[%emt 0:00:37]} 11. f4 {[%emt 0:00:08]} Ne4 {[%emt 0:00:50]} 12. Be3 {[%emt 0:00:11]} Qb8 {[%emt 0:01:57]} 13. Qd3 {[%emt 0:00:34]} Qxb2 {[%emt 0:04:33]} 14. Nd2 {[%emt 0:00:31]} Nxd2 {[%emt 0:01:41] Black has an edge.} 15. Qxd2 {[%emt 0:00:08][%cal Oe5e6]} O-O {[%emt 0:01:59]} 16. a3 {[%emt 0:03:15] [#] And now Rfb1 would win.} Qb6 {[%emt 0:23:06]} (16... Bxa3 $2 17. Rfb1 $18 (17. f5 Bb4 $11)) 17. Qc3 {[%emt 0:00:53] Rab1 would now be deadly.} a5 {[%emt 0:10:01]} 18. Kh1 {[%emt 0:09:39]} Bxd4 $2 {[%emt 0:10:24] This costs Black the game.} (18... Rfb8 $11) 19. Bxd4 $18 {[%emt 0:00:20][%cal Be3d4,Bd4g7,Bg7e5][%mdl 32]} Qb5 {[%emt 0:01:17] [#] Black is weak on the dark squares} (19... c5 $142 20. Bxc5 (20. Qxc5 Qxc5 21. Bxc5 Rfb8 $15) 20... Qc6) 20. e6 $1 {[%emt 0:04:37][%mdl 512]} fxe6 {[%emt 0:06:34]} 21. Bxg7 {[%emt 0:01:54][%cal Og7h6]} Rf7 {[%emt 0:00:49]} 22. Be5 {[%emt 0:15:00]} c5 $2 {[%emt 0:04:33]} (22... h6 {was worth a try.} 23. Rf3 (23. Bxc7 c5 $16) 23... Qc4 24. Qxc4 (24. Bxc7 Qxc3 25. Rxc3 Be8 $16) (24. Rg3+ Kh7 $18) 24... dxc4) 23. Qh3 {[%emt 0:17:31][%cal Oh3h6] aiming for Qh6! White is clearly winning.} ({Not} 23. Bxc7 d4 24. Qd2 Rg7 $14) 23... Kf8 {[%emt 0:06:37]} 24. Rf3 {[%emt 0:02:12]} Rb8 {[%emt 0:09:08]} (24... Qe2 $142 25. Bxc7 Qe4 26. Bd6+ Ke8) 25. Rb3 {[%emt 0:02:27] Weighted Error Value: White=0.06 (flawless) /Black=0.49.  Loses game:     	---       	Black=1      Mistake:       	---       	Black=3      OK:         	White=7     	Black=5      Best:        	White=2     	Black=1} 1-0

[Event "SixDays Budapest GM-A May 2024"]
[Site "Budapest"]
[Date "2024.05.17"]
[Round "2.2"]
[White "Krastev, Alexander"]
[Black "Aczel, Gergely"]
[Result "1/2-1/2"]
[ECO "B10"]
[WhiteElo "2458"]
[BlackElo "2493"]
[Annotator "TA"]
[PlyCount "112"]
[EventDate "2024.05.15"]
[EventType "tourn"]
[EventCountry "HUN"]
[SourceTitle "playchess.com"]
[Source "ChessBase"]
[SourceQuality "1"]
[TimeControl "40/5400+30:1800+30"]

{[%evp 9,112,-9,4,0,31,36,24,35,22,29,15,0,6,5,0,14,12,7,10,-2,-6,0,14,0,0,0,0,0,0,-12,3,4,0,0,20,0,0,0,16,0,5,10,16,0,7,0,11,7,6,6,11,5,3,0,0,0,0,0,0,0,0,0,0,0,0,0,0,0,0,0,100,87,71,8,8,3,19,0,14,16,37,1,18,18,18,14,14,0,20,0,0,0,148,0,0,0,0,0,0,0,0,0,0,0,0]} 1. e4 {[%emt 0:00:03]} c6 {[%emt 0:00:04]} 2. Nf3 {[%emt 0:00:14]} d5 {[%emt 0:00:06]} 3. d3 {[%emt 0:00:08]} dxe4 {[%emt 0:03:05]} 4. dxe4 {[%emt 0:00:06]} Qxd1+ {[%emt 0:00:03]} 5. Kxd1 {[%emt 0:00:07]} Nf6 {[%emt 0:00:04]} 6. Nfd2 {[%emt 0:00:17]} g6 {[%emt 0:00:09]} 7. f3 {[%emt 0:02:42]} Bh6 {[%emt 0:00:07]} 8. Nb3 {[%emt 0:05:19] White has an edge.} Bxc1 {[%emt 0:00:14]} 9. Kxc1 {[%emt 0:00:03]} Nbd7 {[%emt 0:03:43]} 10. a4 {[%emt 0:00:39]} g5 {[%emt 0:04:18]} 11. N1d2 {[%emt 0:27:16]} Ne5 {[%emt 0:00:07]} 12. h4 {[%emt 0:05:42]} gxh4 {[%emt 0:00:10]} 13. Rxh4 {[%emt 0:00:09]} h5 {[%emt 0:02:50]} 14. Nc4 {[%emt 0:01:37]} Ng6 {[%emt 0:00:37]} 15. Rh2 {[%emt 0:00:06]} Be6 {[%emt 0:08:41]} 16. Kd2 {[%emt 0:05:50]} (16. Nc5 {simplifies} Bxc4 17. Bxc4 Ne5 18. b3) 16... O-O-O+ {[%emt 0:02:53]} 17. Ke3 {[%emt 0:00:16]} Kc7 {[%emt 0:18:44]} 18. Nc5 {[%emt 0:04:40]} h4 {[%emt 0:21:27]} 19. b3 {[%emt 0:25:53]} Rh5 {[%emt 0:01:33]} 20. Nxe6+ {[%emt 0:11:55]} fxe6 {[%emt 0:00:05][%cal Bf7e6,Be6e5,Be5f4][%mdl 32]} 21. Nb2 {[%emt 0:00:02][%cal Bc4b2,Bb2d3,Bd3c5][%mdl 32]} Rg5 {[%emt 0:02:31]} 22. Rd1 {[%emt 0:00:54]} Rg3 {[%emt 0:06:06]} 23. Kf2 {[%emt 0:04:31]} Rg8 {[%emt 0:06:27]} 24. Nd3 {[%emt 0:00:15]} e5 {[%emt 0:01:32]} 25. Nc5 {[%emt 0:01:21]} Nf4 $1 {[%emt 0:05:17]} 26. Rxh4 {[%emt 0:00:05]} Nxg2 {[%emt 0:02:34] Excellent horsemanship.} 27. Ne6+ {[%emt 0:00:06]} Kb6 $1 {[%emt 0:00:19]} 28. Rh1 {[%emt 0:03:36]} Nf4 {[%emt 0:03:01]} 29. Nxf4 {[%emt 0:00:06]} exf4 {[%emt 0:00:04]} 30. Rh4 {[%emt 0:00:15]} e5 {[%emt 0:01:41]} 31. Rh6 {[%emt 0:00:21]} R3g6 {[%emt 0:01:20]} 32. Rxg6 {[%emt 0:00:23]} Rxg6 $11 {[%emt 0:00:01][%mdl 4096] Endgame. KRB-KRN} 33. Rd8 {[%emt 0:01:09]} Kc5 {[%emt 0:01:30]} 34. c3 {[%emt 0:00:31]} a5 {[%emt 0:00:01]} 35. Rb8 {[%emt 0:00:28]} Rg7 {[%emt 0:02:01]} 36. Rf8 {[%emt 0:00:10]} Nd7 {[%emt 0:00:50]} 37. Rh8 {[%emt 0:00:37]} Re7 {[%emt 0:03:33]} 38. Bh3 {[%emt 0:00:57]} Kd6 {[%emt 0:01:08]} 39. Rd8 {[%emt 0:00:39] And now Kg2 would win.} b5 {[%emt 0:00:28] [#]} (39... Kc7 $11 {keeps the balance.} 40. Rxd7+ Rxd7 41. Bxd7 Kxd7) 40. axb5 $1 $16 {[%emt 0:00:30] White is more active.} cxb5 {[%emt 0:00:01] [#]} 41. Ra8 {[%emt 0:30:11]} (41. b4 $1 $16 {[%cal Rb4a5]} a4 42. Bf1) 41... Nc5 $11 {[%emt 0:31:02]} 42. Rxa5 {[%emt 0:00:06]} Rh7 {[%emt 0:00:16]} 43. Kg2 {[%emt 0:00:19] Threatens to win with b4.} Kc6 {[%emt 0:00:44]} 44. b4 {[%emt 0:00:28]} Rg7+ {[%emt 0:00:24]} 45. Kh2 {[%emt 0:00:53]} Nb3 {[%emt 0:00:38]} 46. Ra6+ {[%emt 0:00:29]} Kb7 {[%emt 0:00:02]} 47. Rd6 {[%emt 0:00:15] Hoping for Rd5.} Rc7 $1 {[%emt 0:00:23]} 48. Rd7 {[%emt 0:01:18]} Nc1 {[%emt 0:01:03]} 49. Rxc7+ {[%emt 0:00:21]} Kxc7 {[%emt 0:00:01] KB-KN} 50. Bf1 {[%emt 0:00:08]} Kb6 {[%emt 0:00:56]} (50... Kc6 $11 {remains equal.}) 51. c4 {[%emt 0:00:05]} (51. Kh3 $16) 51... Na2 {[%emt 0:00:04] The position is equal.} 52. cxb5 {[%emt 0:00:06]} Nxb4 {[%emt 0:00:08]} 53. Kh3 {[%emt 0:01:36]} Nc2 {[%emt 0:00:09]} 54. Kh4 {[%emt 0:00:42]} Nd4 {[%emt 0:01:16]} 55. Kg4 {[%emt 0:00:06]} Kc5 {[%emt 0:00:19]} 56. Bd3 {[%emt 0:00:11]} Kb6 {[%emt 0:00:47] Weighted Error Value: White=0.09 (flawless) /Black=0.13 (very precise) .  Mistake:       	White=2     	Black=2      Inaccurate:     	White=1     	Black=1      OK:         	White=19    	Black=20     Best:        	---       	Black=4      Strong:       	White=1     	Black=3} 1/2-1/2

[Event "SixDays Budapest GM-A May 2024"]
[Site "Budapest"]
[Date "2024.05.17"]
[Round "2.3"]
[White "Tan, Jun Ying"]
[Black "Wadsworth, Matthew J"]
[Result "1-0"]
[ECO "E46"]
[WhiteElo "2307"]
[BlackElo "2470"]
[Annotator "TA"]
[PlyCount "119"]
[EventDate "2024.05.15"]
[EventType "tourn"]
[EventCountry "HUN"]
[SourceTitle "playchess.com"]
[Source "ChessBase"]
[SourceQuality "1"]
[TimeControl "40/5400+30:1800+30"]

{[%evp 47,119,14,19,-23,-15,-20,-17,-50,-22,-24,0,-28,-25,-33,-31,-58,-56,-80,0,-4,0,0,43,-248,137,101,174,152,154,170,155,172,196,160,198,112,77,107,176,144,168,154,378,385,361,377,337,223,542,69,29965,12085,29981,29982,29982,6366,6366,6366,6366,6366,6366,6366,6351,6070,1936,1507,801,752,1363,654,6103,6070,1999,1959]} 1. d4 {[%emt 0:00:06] Prathamesh,Sunil Mokal} Nf6 {[%emt 0:00:08]} 2. c4 {[%emt 0:00:05]} e6 {[%emt 0:00:12]} 3. Nc3 {[%emt 0:00:17]} Bb4 {[%emt 0:00:11]} 4. e3 {[%emt 0:00:48]} O-O {[%emt 0:00:22]} 5. Nge2 {[%emt 0:00:30]} d5 {[%emt 0:00:10]} 6. a3 {[%emt 0:00:11]} Bd6 {[%emt 0:00:27]} 7. Ng3 {[%emt 0:00:18]} c5 {[%emt 0:00:24]} 8. dxc5 {[%emt 0:00:21]} Bxc5 {[%emt 0:00:12]} 9. b4 {[%emt 0:00:14]} Be7 {[%emt 0:00:46] E46: Nimzo-Indian: Rubinstein: 4 e3 0-0 5 Ne2 without early Bd3.} 10. cxd5 $1 {[%emt 0:00:11][%mdl 4] is recently more successful than 10.Bb2.} a5 {[%emt 0:00:44]} 11. b5 {[%emt 0:00:27]} exd5 {[%emt 0:02:49]} 12. Bd3 {[%emt 0:14:54]} Bg4 $146 {[%emt 0:05:17]} ({Predecessor:} 12... Re8 13. O-O Nbd7 14. Bb2 Nc5 15. Nce2 Be6 16. Nf4 Bf8 17. Bc2 Rc8 18. Rc1 g6 {1-0 Gupta,A (2613)-Lalith,B (2553) Al Ain op 4th 2015 (7)}) 13. Nce2 {[%emt 0:02:01]} Nbd7 {[%emt 0:04:05]} 14. h3 {[%emt 0:03:29]} Be6 {[%emt 0:03:35]} 15. Nf5 {[%emt 0:00:44]} Bxf5 {[%emt 0:01:19]} 16. Bxf5 {[%emt 0:00:13]} a4 {[%emt 0:01:13]} 17. O-O {[%emt 0:02:57]} Ne5 {[%emt 0:01:08]} 18. Bc2 {[%emt 0:04:15]} Nc4 {[%emt 0:13:02]} 19. Bxa4 {[%emt 0:04:01]} Qa5 {[%emt 0:03:37]} 20. Bb3 {[%emt 0:16:40]} Qxb5 {[%emt 0:01:55]} 21. a4 {[%emt 0:05:20]} Qa5 {[%emt 0:04:25]} 22. Rb1 {[%emt 0:06:59]} Rfd8 {[%emt 0:04:24]} 23. Bc2 {[%emt 0:08:06]} Qa6 {[%emt 0:04:09]} 24. Nc3 {[%emt 0:03:41]} Rac8 {[%emt 0:04:14]} 25. Nb5 {[%emt 0:01:45]} Ne4 {[%emt 0:05:25]} 26. Bd3 {[%emt 0:06:05]} Bf6 {[%emt 0:03:46]} 27. Re1 {[%emt 0:06:24]} g6 {[%emt 0:07:18]} 28. Re2 {[%emt 0:00:48]} h5 {[%emt 0:02:07]} 29. Ra2 {[%emt 0:00:55]} Bh4 {[%emt 0:02:49]} 30. g3 {[%emt 0:01:36]} Bf6 {[%emt 0:01:11]} 31. h4 {[%emt 0:00:41]} Qe6 {[%emt 0:01:45]} 32. Rc2 {[%emt 0:07:28] [#]} Be5 {[%emt 0:04:55]} (32... Ne5 $1 $17 {...Rxc2 would now be deadly.} 33. Nd4 Qe7) 33. Qe2 {[%emt 0:00:42]} Nb6 {[%emt 0:05:42]} 34. Nd4 {[%emt 0:01:58]} Qf6 {[%emt 0:06:27]} (34... Bxd4 {simplifies} 35. exd4 Rxc2 36. Bxc2 Qc6) 35. a5 $2 {[%emt 0:00:09][%mdl 8192] [#]} (35. Bxe4 $14 {stays ahead.} dxe4 36. a5) 35... Na4 $2 {[%emt 0:01:33]} (35... Nc3 $2 36. Rxc3 Rxc3 37. axb6 $18) (35... Rxc2 $1 $19 36. Qxc2 (36. Bxc2 $2 Nc3 $19) 36... Rc8 37. Bxe4 Rxc2 38. Nxc2 dxe4 39. Rxb6 Qf3) 36. Rxb7 {[%emt 0:00:41]} Nac3 {[%emt 0:00:25]} (36... Rxc2 $16 37. Qxc2 (37. Bxc2 Rc8 $16) 37... Nac5) 37. Qf1 {[%emt 0:01:14]} Bxd4 {[%emt 0:00:21]} 38. exd4 {[%emt 0:00:21]} Qxd4 {[%emt 0:00:16]} 39. Be3 {[%emt 0:00:33]} Qa4 {[%emt 0:00:17]} 40. Bb6 {[%emt 0:00:52]} Re8 {[%emt 0:00:53]} 41. Rc7 {[%emt 0:31:00]} (41. a6 $18) 41... Rxc7 $16 {[%emt 0:32:11]} 42. Bxc7 {[%emt 0:00:01]} Qd4 {[%emt 0:00:38]} (42... d4 $16) 43. Bb6 {[%emt 0:00:21]} Qb4 {[%emt 0:00:37]} 44. Qc1 {[%emt 0:00:47]} Na4 $2 {[%emt 0:00:57]} (44... d4 $16 45. Kh2 Nf6) 45. Rc8 $18 {[%emt 0:00:37]} Rxc8 {[%emt 0:01:26]} 46. Qxc8+ {[%emt 0:00:01]} Kg7 {[%emt 0:00:39]} 47. Bxe4 {[%emt 0:00:12]} Qxe4 $2 {[%emt 0:02:05]} (47... Nxb6 {is a better chance.} 48. axb6 dxe4) 48. Qc6 $2 {[%emt 0:00:21]} (48. Ba7 $18) 48... Kg8 $2 {[%emt 0:01:03][%mdl 8192]} (48... Nxb6 $14 49. axb6 (49. Qxb6 d4 $11) 49... Qb1+ 50. Kg2 d4) 49. Be3 {[%emt 0:00:31]} Qb4 {[%emt 0:00:53]} 50. a6 {[%emt 0:00:43]} d4 {[%emt 0:00:07]} 51. a7 {[%emt 0:01:07]} (51. Qe8+ $142 Kg7 52. Qe5+ f6 53. Qc7+ (53. Qxd4 Qb3 $18) 53... Kf8 54. a7 (54. Qd8+ Kf7 $18) 54... Qb1+ 55. Kh2 Qe4 56. Bxd4) 51... Nb6 $18 {[%emt 0:00:14]} 52. a8=Q+ {[%emt 0:00:34]} ({Not} 52. a8=B dxe3 53. Qe8+ Kg7 54. fxe3 Qe1+ 55. Kg2 Nc4 $17) 52... Nxa8 {[%emt 0:00:07]} 53. Qxa8+ {[%emt 0:00:01]} Kh7 {[%emt 0:00:15]} 54. Bg5 {[%emt 0:00:32]} Qe1+ {[%emt 0:00:26]} 55. Kg2 {[%emt 0:00:04]} Qe5 {[%emt 0:00:07]} 56. Qf3 {[%emt 0:00:47]} Kg7 {[%emt 0:00:07]} 57. Qf4 {[%emt 0:01:06]} Qd5+ {[%emt 0:00:18]} 58. Kh2 {[%emt 0:00:20]} (58. Kg1 $142 Qe6 59. Qxd4+ f6 60. Qa7+ Kf8 61. Bh6+ Ke8 62. Qe3) 58... Kh7 {[%emt 0:01:51]} 59. Bf6 {[%emt 0:00:11]} d3 {[%emt 0:00:19]} 60. Qb8 {[%emt 0:00:30]} 1-0

[Event "SixDays Budapest GM-A May 2024"]
[Site "Budapest"]
[Date "2024.05.17"]
[Round "2.4"]
[White "Berczes, David"]
[Black "Sathvik Adiga"]
[Result "1/2-1/2"]
[ECO "D26"]
[WhiteElo "2425"]
[BlackElo "2398"]
[Annotator "RC"]
[PlyCount "115"]
[EventDate "2024.05.15"]
[EventType "tourn"]
[EventCountry "HUN"]
[SourceTitle "playchess.com"]
[Source "ChessBase"]
[SourceQuality "1"]
[TimeControl "40/5400+30:1800+30"]

1. d4 {[%emt 0:00:14]} d5 {[%emt 0:00:16]} 2. Nf3 {[%emt 0:00:23]} Nf6 {[%emt 0:00:08]} 3. c4 {[%emt 0:11:31]} dxc4 {[%emt 0:00:13]} 4. e3 {[%emt 0:00:07]} e6 {[%emt 0:00:04]} 5. Bxc4 {[%emt 0:00:05]} c5 {[%emt 0:00:06]} 6. O-O {[%emt 0:01:09]} Nc6 {[%emt 0:00:05]} 7. a3 {[%emt 0:08:20]} a6 {[%emt 0:05:31]} 8. dxc5 {[%emt 0:04:23]} Qxd1 {[%emt 0:04:55]} 9. Rxd1 {[%emt 0:00:04]} Bxc5 {[%emt 0:00:09]} 10. b4 {[%emt 0:07:08]} Be7 {[%emt 0:00:54]} 11. Bb2 {[%emt 0:00:43]} O-O {[%emt 0:03:31]} 12. Nbd2 {[%emt 0:02:18]} b5 {[%emt 0:02:25]} 13. Be2 {[%emt 0:07:39]} Bb7 {[%emt 0:01:34]} 14. Nb3 {[%emt 0:00:29]} Rad8 {[%emt 0:01:37]} 15. Nfd4 {[%emt 0:04:12]} Rc8 {[%emt 0:15:18]} 16. Rac1 {[%emt 0:20:11]} Rfd8 {[%emt 0:09:03]} 17. Nxc6 {[%emt 0:10:43]} Rxd1+ {[%emt 0:00:46]} 18. Bxd1 {[%emt 0:00:35]} Rxc6 {[%emt 0:01:12]} 19. Bc2 {[%emt 0:00:17]} Rc8 {[%emt 0:03:01]} 20. Na5 {[%emt 0:08:20]} Be4 {[%emt 0:00:20]} 21. Bxe4 {[%emt 0:02:01]} Rxc1+ {[%emt 0:00:05]} 22. Bxc1 {[%emt 0:00:07]} Nxe4 {[%emt 0:00:02]} 23. Nc6 {[%emt 0:01:11]} Bd6 {[%emt 0:00:36]} 24. f3 {[%emt 0:02:32]} Nc3 {[%emt 0:04:23]} 25. Bb2 {[%emt 0:00:33]} Nb1 {[%emt 0:01:41]} 26. Bc1 {[%emt 0:03:09]} Kf8 {[%emt 0:02:25]} 27. g3 {[%emt 0:04:03]} Ke8 {[%emt 0:01:51]} 28. Kf1 {[%emt 0:01:03]} Kd7 {[%emt 0:02:26]} 29. Na5 {[%emt 0:00:10]} f6 {[%emt 0:00:41]} 30. Ke2 {[%emt 0:00:44]} Nc3+ {[%emt 0:00:27]} 31. Kd3 {[%emt 0:00:07]} Nd5 {[%emt 0:01:14]} 32. e4 {[%emt 0:00:21]} Ne7 {[%emt 0:00:11]} 33. f4 {[%emt 0:00:30]} Nc6 {[%emt 0:04:21]} 34. Nb3 {[%emt 0:00:07]} Nd8 {[%emt 0:00:12]} 35. Be3 {[%emt 0:01:17]} Nb7 {[%emt 0:00:02]} 36. Bd4 {[%emt 0:01:06]} Kc6 {[%emt 0:00:57]} 37. Bc3 {[%emt 0:00:36]} h5 {[%emt 0:02:18]} 38. f5 {[%emt 0:00:30]} exf5 {[%emt 0:03:32]} 39. Nd4+ {[%emt 0:00:03]} Kd7 {[%emt 0:00:06]} 40. Nxf5 {[%emt 0:00:53]} Bf8 {[%emt 0:00:14]} 41. Ne3 {[%emt 0:30:15]} Bd6 {[%emt 0:33:43]} 42. Nf5 {[%emt 0:00:04]} Bf8 {[%emt 0:00:27]} 43. Ne3 {[%emt 0:01:13]} Ke6 {[%emt 0:00:53]} 44. Nd5 {[%emt 0:00:29]} Bd6 {[%emt 0:00:05]} 45. Nf4+ {[%emt 0:00:15]} Bxf4 {[%emt 0:00:05]} 46. gxf4 {[%emt 0:00:03]} g6 {[%emt 0:02:38]} 47. Kd4 {[%emt 0:00:52]} Nd6 {[%emt 0:01:25]} 48. Be1 {[%emt 0:00:11]} Nb7 {[%emt 0:06:23]} 49. Bh4 {[%emt 0:00:23]} Nd6 {[%emt 0:02:33]} 50. Be1 {[%emt 0:00:07]} Nb7 {[%emt 0:00:25]} 51. Bg3 {[%emt 0:01:31]} Nd6 {[%emt 0:00:52]} 52. f5+ {[%emt 0:00:33]} gxf5 {[%emt 0:00:06]} 53. Bxd6 {[%emt 0:00:02]} Kxd6 {[%emt 0:00:01]} 54. exf5 {[%emt 0:00:04]} Kc6 {[%emt 0:00:12]} 55. Ke4 {[%emt 0:00:07]} Kd6 {[%emt 0:00:04]} 56. h3 {[%emt 0:00:32]} Kc6 {[%emt 0:00:09]} 57. Kd4 {[%emt 0:00:04]} Kd6 {[%emt 0:00:06]} 58. Ke4 {[%emt 0:00:02]} 1/2-1/2